bitfinex/quotes_SOLUSD_20240614
["timestamp","ask_amount","ask_price","bid_price","bid_amount"]
[1718404457711,2.5976,142.44,142.42,2.5979]
[1718404457911,25.9742,142.45,142.42,2.5979]
[1718404458228,25.9742,142.45,142.42,7.7937]
[1718404458229,7.7923,142.45,142.42,7.7937]
[1718404458438,2.5975,142.45,142.42,15.5874]
[1718404459027,0.17,142.46,142.36,22.226]
[1718404459342,23.3789,142.44,142.36,22.226]
[1718404459536,15.5857,142.44,142.4,12.9911]
[1718404459721,25.976,142.44,142.4,25.9823]
[1718404459909,27.8724,142.45,142.42,2.5978]
[1718404460113,27.8724,142.45,142.42,15.5874]
[1718404460114,2.5974,142.45,142.42,15.5874]
[1718404460341,23.3741,142.47,142.43,12.9885]
[1718404460520,20.08,142.48,142.41,10.3921]
[1718404460521,2.5974,142.45,142.41,10.3921]
[1718404460724,7.7927,142.44,142.41,2.5979]
[1718404461045,7.7927,142.44,142.4,23.3836]
[1718404461046,2.5977,142.43,142.4,7.7947]
[1718404461212,7.7932,142.43,142.4,7.7947]
[1718404461415,7.7932,142.43,142.4,2.5981]
[1718404461738,7.7932,142.43,142.4,7.7947]
[1718404462244,5.1959,142.42,142.38,10.3944]
[1718404462540,23.3819,142.42,142.38,25.9859]
[1718404462726,25.9799,142.42,142.39,2.5984]
[1718404462909,23.5507,142.43,142.39,12.9923]
[1718404463122,7.9635,142.43,142.4,7.7948]
[1718404463315,2.7678,142.43,142.4,7.7948]
[1718404463742,2.7678,142.43,142.4,7.7947]
[1718404464241,7.9633,142.43,142.4,2.5982]
[1718404464534,2.598,142.42,142.39,7.7952]
[1718404464713,25.98,142.42,142.39,2.5984]
[1718404464915,2.7677,142.43,142.4,15.5895]
[1718404465132,2.7677,142.43,142.4,7.7947]
[1718404465840,7.9632,142.43,142.4,2.5983]
[1718404466028,7.9632,142.43,142.4,7.7949]
[1718404466229,7.9632,142.43,142.4,2.5983]
[1718404466527,15.7565,142.43,142.39,25.984]
[1718404466837,2.5982,142.41,142.38,2.5986]
[1718404467012,5.1969,142.4,142.36,7.7968]
[1718404467216,23.3839,142.41,142.38,2.5986]
[1718404467421,7.794,142.42,142.38,23.3876]
[1718404467648,5.1968,142.4,142.33,15.8177]
[1718404467824,7.7952,142.4,142.37,2.5987]
[1718404468136,2.5982,142.41,142.37,18.1918]
[1718404468338,7.9635,142.43,142.4,2.5982]
[1718404468636,7.9635,142.43,142.34,0.34]
[1718404468637,7.7933,142.43,142.34,0.34]
[1718404468840,7.7933,142.43,142.4,2.5982]
[1718404469028,15.9257,142.44,142.4,23.3841]
[1718404469229,8.133,142.44,142.41,2.5981]
[1718404469439,15.9257,142.44,142.41,2.5981]
[1718404469645,15.9257,142.44,142.4,25.9822]
[1718404470143,2.5977,142.43,142.4,7.7946]
[1718404470323,2.5977,142.43,142.39,18.1885]
[1718404470324,7.7939,142.42,142.38,23.387]
[1718404470637,7.7945,142.41,142.37,23.3885]
[1718404470842,2.5983,142.4,142.37,2.5987]
[1718404471036,7.7955,142.39,142.36,2.5989]
[1718404471234,7.7955,142.39,142.35,23.3923]
[1718404471235,23.3868,142.39,142.35,25.9916]
[1718404471637,0.17,142.39,142.34,2.5992]
[1718404471846,7.7967,142.37,142.34,2.5994]
[1718404472241,2.5989,142.37,142.34,7.7982]
[1718404472624,25.9881,142.38,142.34,25.9939]
[1718404472946,25.9881,142.38,142.35,2.5992]
[1718404472947,7.7964,142.38,142.35,2.5992]
[1718404473931,26.3259,142.39,142.36,2.599]
[1718404474344,0.17,142.39,142.37,2.5988]
[1718404474660,7.7951,142.4,142.37,7.7965]
[1718404474829,2.5984,142.4,142.37,7.7965]
[1718404475029,25.9805,142.42,142.38,15.5918]
[1718404475232,41.6326,142.44,142.3,0.17]
[1718404475465,19.91,142.46,142.36,15.6656]
[1718404475665,7.7926,142.44,142.41,2.598]
[1718404475862,23.3776,142.45,142.41,18.1865]
[1718404476034,23.3776,142.45,142.41,15.5884]
[1718404476035,2.5976,142.44,142.41,15.5884]
[1718404476229,25.9751,142.45,142.42,2.5979]
[1718404476429,2.5976,142.44,142.41,18.1865]
[1718404476667,7.7927,142.44,142.41,7.7941]
[1718404476968,23.3782,142.44,142.4,25.9817]
[1718404477137,2.5978,142.43,142.4,7.7944]
[1718404477333,2.5978,142.43,142.4,15.5893]
[1718404477541,25.9759,142.44,142.41,2.5981]
[1718404477767,15.7547,142.45,142.42,2.5978]
[1718404478255,7.7918,142.46,142.43,2.5977]
[1718404478635,26.2949,142.48,142.4,15.5893]
[1718404478636,10.3903,142.44,142.4,15.5893]
[1718404478836,2.5977,142.43,142.4,7.7945]
[1718404479140,2.5977,142.43,142.4,2.5981]
[1718404479459,2.5977,142.43,142.4,7.7946]
[1718404479838,2.5977,142.43,142.4,15.5895]
[1718404480039,26.2949,142.48,142.36,15.6656]
[1718404480355,2.5972,142.46,142.43,2.5976]
[1718404480657,2.5972,142.46,142.43,7.7931]
[1718404480864,7.7916,142.46,142.43,2.5976]
[1718404481364,2.5974,142.45,142.42,25.9783]
[1718404481534,2.5976,142.44,142.41,2.5979]
[1718404481741,7.7918,142.46,142.43,2.5977]
[1718404482079,2.5974,142.45,142.42,7.7934]
[1718404482451,23.3752,142.46,142.42,25.9789]
[1718404482634,25.9726,142.46,142.42,25.9789]
[1718404483081,7.7922,142.45,142.42,7.7934]
[1718404483269,15.5844,142.45,142.42,2.5977]
[1718404483774,2.5974,142.45,142.42,7.7935]
[1718404483981,2.5974,142.45,142.42,15.5873]
[1718404484442,23.3735,142.47,142.43,25.9771]
[1718404484642,25.9695,142.48,142.44,23.3778]
[1718404484842,2.597,142.47,142.44,25.9752]
[1718404485592,2.597,142.47,142.44,7.7924]
[1718404485769,2.597,142.47,142.44,15.585]
[1718404486167,10.3889,142.46,142.38,0.17]
[1718404486395,7.7918,142.46,142.43,2.5976]
[1718404486689,7.7918,142.46,142.43,7.7931]
[1718404487061,7.7918,142.46,142.43,2.5976]
[1718404487265,23.3743,142.47,142.43,23.3796]
[1718404487487,2.5972,142.46,142.43,25.9771]
[1718404487871,7.7916,142.46,142.43,7.7929]
[1718404488074,25.9714,142.47,142.44,2.5975]
[1718404488308,2.5971,142.47,142.44,15.5852]
[1718404488869,7.7911,142.47,142.44,7.7926]
[1718404490391,15.5823,142.47,142.44,2.5975]
[1718404490589,2.5969,142.48,142.45,12.9867]
[1718404490900,2.5969,142.48,142.45,25.9734]
[1718404491067,2.5969,142.48,142.46,2.5972]
[1718404491395,25.9686,142.48,142.45,2.5972]
[1718404491697,7.7918,142.46,142.43,2.5976]
[1718404491989,7.7918,142.46,142.43,7.7931]
[1718404492190,2.5973,142.46,142.43,15.5863]
[1718404492371,25.9715,142.47,142.44,2.5975]
[1718404492981,7.7914,142.47,142.44,2.5975]
[1718404493174,25.9706,142.47,142.44,2.5975]
[1718404493492,0.34,142.49,142.37,20.0]
[1718404493667,2.5972,142.46,142.43,7.793]
[1718404493991,7.7916,142.46,142.43,7.793]
[1718404494167,2.5972,142.46,142.43,15.5862]
[1718404494370,2.5972,142.46,142.43,7.793]
[1718404494571,2.5972,142.46,142.43,25.9772]
[1718404494884,2.5972,142.46,142.44,2.5975]
[1718404495187,7.7906,142.48,142.45,7.7918]
[1718404495396,2.5969,142.48,142.45,15.584]
[1718404496099,15.5812,142.48,142.45,2.5972]
[1718404496597,7.7907,142.48,142.45,7.7919]
[1718404497176,15.5812,142.48,142.45,2.5972]
[1718404498600,7.7907,142.48,142.45,7.7919]
[1718404498897,21.7226,142.51,142.48,15.5807]
[1718404498898,2.5963,142.51,142.48,15.5807]
[1718404499080,2.5963,142.51,142.48,25.968]
[1718404499479,23.3659,142.52,142.49,2.5966]
[1718404499683,7.7884,142.52,142.49,7.7898]
[1718404499977,257.5,142.55,142.44,0.17]
[1718404500190,2.5959,142.53,142.51,2.5962]
[1718404500406,2.5959,142.54,142.52,2.5961]
[1718404500616,257.5,142.55,142.52,15.5764]
[1718404500787,2.5958,142.54,142.52,2.5959]
[1718404501111,273.0735,142.55,142.52,2.596]
[1718404501303,2.5957,142.54,142.52,2.596]
[1718404501506,260.0956,142.55,142.53,2.5958]
[1718404501713,260.0956,142.55,142.54,25.9574]
[1718404501714,257.5,142.55,142.54,25.9574]
[1718404501885,23.3555,142.58,142.55,2.5955]
[1718404502089,23.3555,142.58,142.55,7.7866]
[1718404502090,25.9506,142.58,142.55,7.7866]
[1718404502306,5.1901,142.58,142.54,23.3606]
[1718404502615,2.5952,142.57,142.54,23.3606]
[1718404502782,25.9506,142.58,142.55,2.5955]
[1718404502985,2.5951,142.58,142.55,25.955]
[1718404503289,25.9493,142.59,142.56,7.786]
[1718404503491,25.9493,142.59,142.55,18.1688]
[1718404503492,2.5952,142.57,142.54,15.5742]
[1718404503693,2.5952,142.57,142.55,2.5955]
[1718404504094,291.62124248,142.62,142.51,15.4383]
[1718404504095,20.7594,142.59,142.51,15.4383]
[1718404504283,7.7848,142.59,142.56,23.3581]
[1718404504606,7.7848,142.59,142.56,2.5952]
[1718404504607,2.595,142.58,142.56,2.5952]
[1718404504910,2.595,142.59,142.57,2.5951]
[1718404505112,2.5948,142.6,142.58,2.595]
[1718404505313,5.1893,142.6,142.57,12.976]
[1718404505487,15.5691,142.59,142.56,7.7859]
[1718404505689,0.8462978,142.62,142.55,6.2568]
[1718404505890,8.6291978,142.62,142.59,15.5687]
[1718404506101,3.4405978,142.62,142.59,23.3532]
[1718404506304,8.6291978,142.62,142.59,25.9478]
[1718404506611,0.8462978,142.62,142.6,2.5945]
[1718404506819,3.4405978,142.62,142.59,23.3526]
[1718404506993,0.8462978,142.62,142.6,15.5677]
[1718404507194,0.8462978,142.62,142.6,25.9463]
[1718404507398,8.6292978,142.62,142.57,15.4383]
[1718404507605,8.6292978,142.62,142.59,25.9479]
[1718404507914,0.8462978,142.62,142.61,2.5944]
[1718404508127,0.8462978,142.62,142.61,25.9446]
[1718404509793,0.8462978,142.62,142.61,15.5667]
[1718404510012,0.8462978,142.62,142.61,25.9446]
[1718404510199,0.8462978,142.62,142.61,2.5944]
[1718404510402,0.8462978,142.62,142.61,7.7833]
[1718404510601,0.8462978,142.62,142.61,25.9446]
[1718404510816,0.8462978,142.62,142.6,25.9453]
[1718404511014,0.8462978,142.62,142.6,23.3508]
[1718404511213,0.8462978,142.62,142.61,7.7833]
[1718404511417,0.8462978,142.62,142.61,2.5944]
[1718404512030,0.8462978,142.62,142.61,15.5667]
[1718404512196,0.8462978,142.62,142.61,25.9446]
[1718404513694,36.3056,142.71,142.67,12.9667]
[1718404513896,279.0324,142.72,142.62,6.621]
[1718404513897,379.0324,142.72,142.62,6.621]
[1718404514097,5.1865,142.68,142.58,6.791]
[1718404514314,2.5934,142.67,142.64,23.3442]
[1718404514518,19.91,142.7,142.6,0.17]
[1718404514519,38.0605,142.7,142.6,0.17]
[1718404514721,2.593,142.69,142.67,2.5933]
[1718404515199,7.7796,142.68,142.65,25.9364]
[1718404515417,7.7791,142.69,142.66,25.9351]
[1718404515727,398.9424,142.72,142.59,0.17]
[1718404515898,25.9332,142.68,142.65,7.7811]
[1718404516103,5.1867,142.68,142.65,2.5937]
[1718404516405,7.7814,142.65,142.62,23.3482]
[1718404516626,7.782,142.64,142.61,15.5665]
[1718404516926,23.3441,142.65,142.62,2.5941]
[1718404517130,25.9364,142.66,142.63,7.7822]
[1718404517527,7.781,142.66,142.63,15.5645]
[1718404517705,23.5113,142.67,142.63,18.1587]
[1718404517905,2.5937,142.65,142.62,23.3476]
[1718404518622,7.7825,142.63,142.6,7.7836]
[1718404518933,7.7822,142.64,142.61,7.7832]
[1718404519227,0.34,142.67,142.63,2.594]
[1718404519228,25.9365,142.66,142.63,2.594]
[1718404519418,5.357,142.67,142.64,7.7816]
[1718404519607,15.7307,142.67,142.64,7.7816]
[1718404519806,7.7812,142.65,142.62,25.9423]
[1718404520003,2.5937,142.65,142.62,25.9423]
[1718404520205,2.5939,142.64,142.62,2.5941]
[1718404520405,19.91,142.66,142.6,7.7836]
[1718404520715,0.17,142.64,142.54,6.621]
[1718404520908,0.17,142.64,142.57,2.595]
[1718404520909,5.1893,142.6,142.57,2.595]
[1718404521114,7.7847,142.59,142.56,7.7857]
[1718404521421,2.5949,142.59,142.56,25.9533]
[1718404521632,2.5949,142.59,142.57,2.5952]
[1718404521831,2.5948,142.6,142.58,2.5949]
[1718404522127,15.5672,142.61,142.58,7.7849]
[1718404522304,15.5672,142.61,142.58,2.5949]
[1718404522507,15.5672,142.61,142.58,7.7849]
[1718404522730,2.5946,142.6,142.58,2.5949]
[1718404522926,2.5947,142.6,142.58,2.5949]
[1718404523316,2.5947,142.6,142.57,25.951]
[1718404523730,7.7841,142.6,142.57,7.7851]
[1718404523920,7.7841,142.6,142.57,15.5707]
[1718404524236,7.7835,142.61,142.58,7.7847]
[1718404524737,0.17,142.62,142.6,2.5946]
[1718404524937,2.594,142.64,142.61,5.1889]
[1718404525114,52.4892,142.68,142.57,6.4009]
[1718404525438,2.5936,142.66,142.64,2.5938]
[1718404525639,2.5936,142.66,142.63,25.94]
[1718404525839,7.7807,142.66,142.63,25.94]
[1718404526018,15.5615,142.66,142.63,7.7818]
[1718404526220,23.3422,142.66,142.63,7.7818]
[1718404526534,2.5936,142.66,142.64,2.5938]
[1718404526872,23.3395,142.68,142.65,2.5937]
[1718404527013,25.9328,142.68,142.65,7.7812]
[1718404527218,2.5934,142.67,142.65,2.5937]
[1718404527851,25.9328,142.68,142.65,7.7811]
[1718404528235,0.17,142.67,142.62,7.7827]
[1718404528438,2.5939,142.64,142.62,2.5943]
[1718404528625,7.7831,142.62,142.59,2.5947]
[1718404528825,25.9416,142.63,142.6,15.5677]
[1718404529045,25.9416,142.63,142.6,7.7838]
[1718404529221,12.9693,142.65,142.57,22.0421]
[1718404529422,2.5939,142.64,142.62,7.7826]
[1718404529635,7.7818,142.64,142.61,25.9436]
[1718404529838,15.5685,142.6,142.57,2.5951]
[1718404530042,7.784,142.6,142.57,23.3563]
[1718404530224,7.7837,142.61,142.58,25.9499]
[1718404530225,7.7838,142.61,142.58,25.9499]
[1718404530428,23.5193,142.62,142.59,2.5947]
[1718404530647,2.5945,142.61,142.59,2.5947]
[1718404530856,25.9437,142.62,142.59,7.7844]
[1718404531354,7.9537,142.61,142.59,2.5948]
[1718404531581,7.7826,142.63,142.61,2.5944]
[1718404531773,2.5942,142.63,142.61,2.5944]
[1718404532280,23.3477,142.63,142.6,2.5946]
[1718404532462,2.5943,142.62,142.59,25.9475]
[1718404532666,23.349,142.62,142.59,2.5947]
[1718404532876,25.9434,142.62,142.59,2.5947]
[1718404533168,18.1616,142.61,142.57,23.3557]
[1718404533354,2.5948,142.6,142.58,2.595]
[1718404533677,7.7841,142.6,142.57,25.9513]
[1718404533882,25.9454,142.61,142.58,2.595]
[1718404534047,0.17,142.6,142.55,10.3817]
[1718404534248,0.17,142.6,142.56,7.786]
[1718404534249,7.7846,142.59,142.56,7.786]
[1718404534559,2.5949,142.59,142.56,23.3582]
[1718404534764,0.17,142.6,142.58,25.9499]
[1718404534966,0.17,142.6,142.58,7.7848]
[1718404535162,7.9539,142.6,142.57,25.9509]
[1718404535476,2.5948,142.59,142.57,7.7852]
[1718404535673,2.5948,142.59,142.57,2.595]
[1718404535881,2.5948,142.59,142.56,25.9527]
[1718404536073,7.7845,142.59,142.56,25.9527]
[1718404536378,2.5948,142.59,142.57,2.5951]
[1718404536588,23.5222,142.6,142.53,15.8281]
[1718404536589,23.5255,142.58,142.55,7.7863]
[1718404536756,5.1901,142.58,142.55,2.5954]
[1718404536963,2.5952,142.57,142.55,2.5955]
[1718404537682,0.34,142.6,142.53,15.8281]
[1718404537874,2.595,142.58,142.56,2.5953]
[1718404538279,2.595,142.58,142.56,7.786]
[1718404538456,2.595,142.58,142.56,2.5953]
[1718404538662,2.5953,142.57,142.54,23.3614]
[1718404538860,23.3544,142.59,142.56,2.5953]
[1718404539192,7.7847,142.59,142.56,15.572]
[1718404539476,7.7847,142.59,142.56,7.7859]
[1718404539477,25.9486,142.59,142.56,7.7859]
[1718404539679,2.5949,142.59,142.57,2.5951]
[1718404539883,25.9486,142.59,142.56,7.7858]
[1718404540058,26.4576,142.6,142.57,2.5951]
[1718404540261,23.8628,142.6,142.57,2.5951]
[1718404540464,2.5948,142.59,142.57,2.5951]
[1718404540664,7.7845,142.59,142.56,25.9534]
[1718404540970,7.7859,142.57,142.53,18.1715]
[1718404541282,15.5718,142.57,142.54,7.7871]
[1718404541463,25.9529,142.57,142.54,2.5957]
[1718404541669,25.9529,142.57,142.54,7.7872]
[1718404542469,7.9554,142.58,142.55,7.7866]
[1718404542865,0.17,142.58,142.56,2.5953]
[1718404543076,0.17,142.58,142.55,7.7865]
[1718404543077,26.2907,142.58,142.55,2.5955]
[1718404543267,2.5952,142.57,142.55,2.5955]
[1718404543468,2.5952,142.57,142.54,23.3607]
[1718404543469,7.7856,142.57,142.54,7.7867]
[1718404543665,15.5712,142.57,142.54,7.7867]
[1718404544058,0.68,142.56,142.46,22.4438]
[1718404544285,7.7874,142.54,142.51,7.7887]
[1718404544467,15.5747,142.54,142.51,2.5962]
[1718404544675,15.5747,142.54,142.51,7.7887]
[1718404544866,7.7874,142.54,142.51,7.7887]
[1718404545187,7.7874,142.54,142.51,15.5776]
[1718404545664,15.5747,142.54,142.51,2.5962]
[1718404545867,15.5747,142.54,142.51,7.7888]
[1718404545868,7.7874,142.54,142.51,7.7888]
[1718404546180,7.787,142.55,142.52,7.7883]
[1718404546360,2.5957,142.55,142.53,2.5959]
[1718404546565,23.3637,142.53,142.5,2.5964]
[1718404546766,10.3854,142.51,142.46,15.8281]
[1718404546973,2.5963,142.51,142.48,25.9678]
[1718404547177,25.9624,142.52,142.49,2.5966]
[1718404547465,7.789,142.51,142.48,2.5967]
[1718404547672,7.789,142.51,142.48,7.7903]
[1718404547886,7.789,142.51,142.48,25.9681]
[1718404548466,7.789,142.51,142.48,7.7903]
[1718404548693,15.5802,142.49,142.46,2.5971]
[1718404548866,7.7901,142.49,142.46,2.5971]
[1718404549187,15.5803,142.49,142.46,2.5971]
[1718404549417,26.1388,142.48,142.45,2.5973]
[1718404549568,2.5972,142.46,142.43,25.977]
[1718404549771,23.5437,142.47,142.44,2.5975]
[1718404549961,7.9614,142.47,142.44,2.5975]
[1718404550161,0.17,142.47,142.45,2.5973]
[1718404550370,2.767,142.47,142.44,25.9754]
[1718404550575,0.17,142.47,142.45,2.5973]
[1718404550965,0.17,142.47,142.45,7.792]
[1718404551166,0.17,142.49,142.4,6.6157]
[1718404551374,15.9201,142.49,142.46,2.597]
[1718404551591,2.5968,142.48,142.45,7.7917]
[1718404551789,15.5812,142.48,142.45,2.5972]
[1718404552204,7.7906,142.48,142.45,2.5972]
[1718404552382,26.3073,142.49,142.46,2.5972]
[1718404552572,2.5968,142.48,142.45,18.1814]
[1718404552775,42.33422666,142.52,142.48,2.5967]
[1718404552776,2.7663,142.51,142.48,2.5967]
[1718404553101,2.5968,142.48,142.41,20.0]
[1718404553304,23.5403,142.49,142.46,7.7913]
[1718404553305,2.5967,142.49,142.46,7.7913]
[1718404553498,7.79,142.49,142.46,7.7913]
[1718404553697,23.3701,142.49,142.45,23.3755]
[1718404553902,25.9669,142.49,142.46,2.5971]
[1718404554710,7.7901,142.49,142.46,7.7915]
[1718404554893,7.7901,142.49,142.46,5.1944]
[1718404554894,2.5968,142.49,142.46,5.1944]
[1718404555208,15.7471,142.52,142.48,18.1771]
[1718404555510,23.7041,142.53,142.49,23.3697]
[1718404555679,8.1279,142.53,142.5,7.7892]
[1718404556310,2.5961,142.52,142.5,2.5964]
[1718404556489,12.9807,142.52,142.45,15.1965]
[1718404556690,2.5963,142.51,142.48,15.5806]
[1718404556888,23.3667,142.51,142.48,2.5967]
[1718404557088,25.9631,142.51,142.48,2.5967]
[1718404557310,18.1733,142.52,142.48,15.5808]
[1718404557608,2.5962,142.52,142.49,25.9663]
[1718404557814,2.5962,142.52,142.5,2.5964]
[1718404557987,26.3001,142.53,142.5,2.5964]
[1718404558189,2.5961,142.52,142.5,2.5964]
[1718404558409,2.5961,142.52,142.49,23.3697]
[1718404558615,2.5964,142.5,142.47,23.3722]
[1718404558920,2.5964,142.5,142.48,2.5968]
[1718404559085,2.5965,142.5,142.47,25.969]
[1718404559382,2.5968,142.48,142.45,35.9744]
[1718404559587,15.5813,142.48,142.45,2.5972]
[1718404559788,15.5812,142.48,142.45,2.5972]
[1718404560093,26.1375,142.49,142.46,2.5972]
[1718404560286,7.96,142.49,142.46,7.7914]
[1718404560613,18.5157,142.5,142.47,23.3727]
[1718404560614,2.5965,142.5,142.47,23.3727]
[1718404560817,2.5968,142.48,142.46,2.5972]
[1718404561039,15.5771,142.52,142.49,2.5966]
[1718404561312,2.596,142.53,142.43,0.17]
[1718404561513,7.7874,142.54,142.51,2.5962]
[1718404561721,7.7868,142.55,142.52,2.596]
[1718404561899,7.7868,142.55,142.52,7.7882]
[1718404562095,7.7865,142.56,142.53,2.5958]
[1718404562316,7.7864,142.56,142.53,2.5958]
[1718404562602,2.5955,142.55,142.52,25.9602]
[1718404562797,2.5955,142.55,142.52,15.576]
[1718404563117,7.7866,142.55,142.52,7.7879]
[1718404563508,2.5955,142.55,142.52,7.7879]
[1718404563715,7.7866,142.55,142.52,7.7879]
[1718404563899,2.5955,142.56,142.53,7.7877]
[1718404564292,7.7863,142.56,142.53,7.7877]
[1718404564720,7.9567,142.55,142.48,15.1965]
[1718404564920,25.958,142.54,142.51,2.5963]
[1718404565226,2.5959,142.53,142.51,2.5963]
[1718404565521,23.3621,142.54,142.51,2.5963]
[1718404565522,7.7875,142.54,142.51,2.5963]
[1718404565817,25.9578,142.54,142.51,2.5963]
[1718404566525,0.17,142.54,142.48,15.1965]
[1718404566997,0.34,142.54,142.48,15.1965]
[1718404567322,0.17,142.53,142.48,15.1965]
[1718404568696,0.17,142.53,142.44,21.702]
[1718404568925,0.17,142.52,142.44,21.702]
[1718404569123,0.51,142.52,142.44,21.702]
[1718404569339,0.17,142.51,142.44,21.702]
[1718404571707,0.17,142.51,142.44,15.1965]
[1718404571928,20.08,142.5,142.4,21.574]
[1718404572123,0.51,142.49,142.4,21.574]
[1718404572296,0.17,142.49,142.4,21.574]
[1718404572603,0.68,142.5,142.4,21.574]
[1718404573631,0.17,142.48,142.36,6.102]
[1718404573921,0.34,142.48,142.37,15.472]
[1718404574136,0.17,142.44,142.29,21.574]
[1718404574299,0.51,142.44,142.29,21.574]
[1718404574629,0.17,142.43,142.29,21.574]
[1718404575002,0.17,142.43,142.31,35.382]
[1718404575205,6.0679,142.45,142.32,21.1]
[1718404575409,0.68,142.44,142.33,0.51]
[1718404576022,0.34,142.44,142.34,0.17]
[1718404576226,116.0213,142.49,142.36,21.1]
[1718404576227,41.9992,142.49,142.36,21.1]
[1718404576404,22.0892,142.49,142.38,0.17]
[1718404576611,129.38251982,142.49,142.37,15.472]
[1718404576809,100.0,142.47,142.37,15.472]
[1718404577315,100.0,142.47,142.35,6.102]
[1718404577518,0.34,142.46,142.35,6.102]
[1718404577716,100.17,142.45,142.33,15.472]
[1718404577916,0.51,142.44,142.34,0.17]
[1718404578118,0.17,142.43,142.34,0.17]
[1718404578314,0.34,142.43,142.34,0.17]
[1718404578515,0.34,142.43,142.33,15.472]
[1718404578909,100.0,142.48,142.33,35.382]
[1718404578910,19.91,142.48,142.33,35.382]
[1718404579114,0.34,142.47,142.33,56.482]
[1718404579311,100.0,142.46,142.33,15.472]
[1718404579532,0.17,142.45,142.34,20.0]
[1718404579716,0.34,142.45,142.34,20.0]
[1718404579911,20.25,142.45,142.34,20.0]
[1718404580126,0.17,142.44,142.34,20.0]
[1718404580324,0.34,142.44,142.34,20.0]
[1718404580634,0.34,142.43,142.34,20.0]
[1718404581736,22.2592,142.42,142.33,15.472]
[1718404582032,0.51,142.41,142.33,15.472]
[1718404583643,0.17,142.4,142.29,15.472]
[1718404586221,0.17,142.4,142.26,0.8462978]
[1718404586222,16.0213,142.36,142.26,0.8462978]
[1718404587929,16.0213,142.36,142.26,20.8462978]
[1718404588620,0.51,142.35,142.26,0.8462978]
[1718404588838,0.17,142.34,142.26,0.8462978]
[1718404593531,0.17,142.31,142.26,0.8462978]
[1718404593728,16.4996,142.3,142.26,0.8462978]
[1718404593958,0.68,142.29,142.26,0.8462978]
[1718404594329,0.68,142.29,142.12,0.8462978]
[1718404594330,2.4547,142.27,142.12,0.8462978]
[1718404594657,0.17,142.26,142.12,0.8462978]
[1718404594853,6.508,142.28,142.16,21.1]
[1718404595752,6.508,142.28,142.15,23.1088]
[1718404595753,6.508,142.28,142.19,0.17]
[1718404595941,2.2847,142.31,142.19,41.78]
[1718404596256,2.2847,142.31,142.19,21.78]
[1718404596455,2.2847,142.31,142.21,0.17]
[1718404596642,2.2847,142.31,142.2,20.0]
[1718404596839,2.2847,142.31,142.19,0.51]
[1718404597040,100.0,142.3,142.19,0.51]
[1718404597359,100.0,142.3,142.19,0.34]
[1718404597561,0.68,142.29,142.19,0.34]
[1718404597736,0.17,142.29,142.19,0.34]
[1718404597935,2.2847,142.31,142.19,0.17]
[1718404598141,2.2847,142.31,142.18,0.34]
[1718404598351,2.2847,142.31,142.2,0.17]
[1718404598545,2.2847,142.31,142.2,20.0]
[1718404598739,102.2847,142.31,142.2,20.0]
[1718404598943,102.2847,142.31,142.15,23.1088]
[1718404599470,0.34,142.3,142.15,23.1088]